Cogmind - Beta 13 *** ADVENTURER MODE // 2024.05.17 @ 07:29:34 // Winter2019/RPGLIKE Player: Gallgagger Result: Self-destructed Performance ------------- Evolutions (1) 500 Regions Visited (3) 600 Robots Destroyed (37) 185 Value Destroyed (740) 740 Prototype IDs (1) 20 Alien Tech Used (0) 0 Bonus (0) 0 TOTAL SCORE: 2045 Bonus ------- None Cogmind --------- Core Integrity 293/700 Matter 300/300 Energy 275/275 System Corruption 0% Temperature Cool (0) Movement Walking (120) Location -9/Materials Parts ------- > --- POWER (2) -------- Ion Engine Light Ion Engine > --- PROPULSION (2) --- Aluminum Leg Aluminum Leg > --- UTILITY (3) ------ Improved Heat Sink Sensor Array Signal Interpreter > --- WEAPON (2) ------- Particle Gun Spread Laser > --- INVENTORY (2) ---- (None) Peak State ------------ > --- POWER ------------ Light Ion Engine Heavy Ion Engine > --- PROPULSION ------- Aluminum Leg Aluminum Leg > --- UTILITY ---------- Improved Heat Sink Sensor Array Signal Interpreter > --- WEAPON ----------- Particle Gun Spread Laser > --- INVENTORY -------- (None) [Rating: 15] Favorites ----------- Power Light Ion Engine Engine Light Ion Engine Propulsion Aluminum Leg Leg Aluminum Leg Utility Signal Interpreter Device Sensor Array Processor Signal Interpreter Weapon Particle Gun Energy Gun Particle Gun Ballistic Gun Assault Rifle Build | -11 -10 -10 -9 ------- Run | Yrd Mat Min Mat Slots Evolved 5 | 4 . . 1 Power 1 | 1 . . . Propulsion 1 | 1 . . . Utility 2 | 1 . . 1 Weapon 1 | 1 . . . Parts Attached 15 | 4 3 2 6 Power 6 | 1 . 1 4 Engine 6 | 1 . 1 4 Core . | . . . . Reactor . | . . . . Propulsion 2 | 2 . . . Treads . | . . . . Leg 2 | 2 . . . Wheel . | . . . . Hover . | . . . . Flight . | . . . . Utility 3 | . 2 . 1 Device 2 | . 1 . 1 Storage . | . . . . Processor 1 | . 1 . . Hackware . | . . . . Protection . | . . . . Artifact . | . . . . Weapon 4 | 1 1 1 1 Energy Gun 2 | . 1 . 1 Energy Cannon . | . . . . Ballistic Gun 2 | 1 . 1 . Ballistic Cannon . | . . . . Launcher . | . . . . Special Weapon . | . . . . Impact Weapon . | . . . . Slashing Weapon . | . . . . Piercing Weapon . | . . . . Special Melee Weapon . | . . . . Unidentified Prototypes 1 | . . . 1 Parts Lost . | . . . . Power . | . . . . Propulsion . | . . . . Utility . | . . . . Weapon . | . . . . Highest Loss Streak . | . . . . To Critical Strikes . | . . . . Average Slot Usage (%) 84 | . 73 85 96 Engine 17 | . 12 19 22 Leg 24 | . 25 25 22 Device 13 | . 11 12 18 Processor 11 | . 11 12 11 Energy Gun 11 | . 5 12 18 Ballistic Gun 4 | . 6 3 3 Naked Turns . | . . . . Heaviest Build 19 | 5 7 11 19 Greatest Support 20 | 20 20 20 20 Greatest Overweight (x) . | . . . . Average Overweight (x) . | . . . . Largest Inventory Capacity 2 | . . 2 2 Average Capacity 1 | . . 1 2 Most Carried 2 | . . 2 1 Average Carried . | . . . . Final Capacity 2 | . . 2 2 Final Carried 1 | . . 1 . Class Distribution -------------------- 87% | Mutant 12% | Scavenger-Mutant Dominant Class ---------------- Mutant | -10/Materials Mutant | -10/Mines Mutant | -9/Materials Resources | -11 -10 -10 -9 ----------- Run | Yrd Mat Min Mat Matter Collected 529 | 255 174 36 64 Remotely . | . . . . Salvage Created 1107 | 100 330 320 357 Parts 75 | 2 19 27 27 Haulers Intercepted . | . . . . Recyclers Shooed 2 | . . . 2 Parts Field Recycled . | . . . . Retrieved Matter . | . . . . Parts Self-Destructed . | . . . . Prevented . | . . . . Kills | -11 -10 -10 -9 ------- Run | Yrd Mat Min Mat Combat Hostiles Destroyed 22 | . 8 7 7 Guns 22 | . 8 7 7 Classes Destroyed 9 | 2 3 2 2 Worker 3 | . . 2 1 Builder 2 | . . 2 . Tunneler 1 | 1 . . . Recycler 3 | 1 . . 2 Operator 1 | . . . 1 Watcher 5 | . 2 . 3 Swarmer 9 | . 3 3 3 Grunt 11 | . 5 4 2 Sentry 2 | . . . 2 Best Kill Streak 4 | 2 4 3 4 Combat Bots Only 4 | . 4 3 3 Max Kills in Single Turn 2 | 1 1 1 2 Gunslinging 1 | . . . 1 Exploded . | . . . . Melee . | . . . . Uniques/NPCs Destroyed . | . . . . Combat | -11 -10 -10 -9 -------- Run | Yrd Mat Min Mat Hostile Shots Fired 138 | . 83 41 14 Missed 35 | . 22 8 5 Damage Taken 958 | . 576 309 73 Core 786 | . 473 259 54 Absorbed by Shields . | . . . . Redirected to Core 537 | . 325 158 54 Ignored by Resistances 298 | . 177 97 24 Core Remaining (%) 58 | 100 . 17 . Volleys Fired 118 | 5 53 38 22 Largest 2 | 1 1 2 2 Hottest 130 | 20 65 85 130 Shots Fired 147 | 5 53 46 43 Gun 147 | 5 53 46 43 Cannon . | . . . . Launcher . | . . . . Special . | . . . . Kinetic 65 | 5 48 8 4 Thermal 82 | . 5 38 39 Explosive . | . . . . Electromagnetic . | . . . . Robot Hit Streak 25 | 5 15 25 19 Robot Miss Streak 2 | . 1 1 2 Penetration Max . | . . . . Secondary Targets 1 | . . . 1 Max Gunslinging Chain 1 | . . . 1 Shots Hit Robots 127 | 5 46 40 36 Core Hits 69 | 3 17 16 33 Critical Kills . | . . . . Critical Parts Destroyed . | . . . . Critical Strikes 3 | . 1 1 1 Burn 3 | . 1 1 1 Melee Attacks . | . . . . Impact . | . . . . Slashing . | . . . . Piercing . | . . . . Sneak Attacks . | . . . . Combat Hostiles . | . . . . Follow-up Attacks . | . . . . Damage Inflicted 1796 | 62 589 572 573 Guns 1792 | 62 589 572 569 Cannons . | . . . . Explosions . | . . . . Melee . | . . . . Ramming 4 | . . . 4 Kinetic 680 | 62 536 55 27 Thermal 1112 | . 53 517 542 Explosive . | . . . . Electromagnetic . | . . . . Impact . | . . . . Slashing . | . . . . Piercing . | . . . . Highest Corruption 1 | . 1 1 . Average Corruption 1 | . 1 1 . Corruption Purged . | . . . . Corruption Blocked . | . . . . Effects 3 | . . 3 . Message Errors 1 | . . 1 . Matter Fused 1 | . . 1 . Heat Flow Errors 1 | . . 1 . Overload Shots . | . . . . Overflow Damage . | . . . . Projectiles . | . . . . Explosions . | . . . . Melee . | . . . . Knockbacks . | . . . . Impact . | . . . . Kinetic . | . . . . Secondary . | . . . . Self-Inflicted Damage . | . . . . Shots . | . . . . Rammed . | . . . . Targets Rammed 1 | . . . 1 Kicked 1 | . . . 1 Crushed . | . . . . Highest Temperature 442 | . 96 442 . Average Temperature 127 | . 24 147 . Received Heat Transfer 621 | . 390 201 30 Effects 1 | . . 1 . Shutdowns 1 | . . 1 . Siege Activations . | . . . . Robots Corrupted . | . . . . Combat Hostiles . | . . . . Parts Fried . | . . . . Impact Corruptions . | . . . . Robots Melted . | . . . . Combat Hostiles . | . . . . Parts Melted 4 | . . 2 2 Heat Transferred 2574 | . 185 1295 1094 Parts Sabotaged . | . . . . Parts Stolen . | . . . . Parts Stripped . | . . . . Power Chain Reactions . | . . . . Alert | -11 -10 -10 -9 ------- Run | Yrd Mat Min Mat Peak Influence 307 | 10 224 117 307 Initial 26 | . 5 7 26 Average 78 | 2 87 49 116 Maximum Alert Level 1 | . 1 . 1 Low Security (%) 89 | 100 78 100 88 Level 1 10 | . 21 . 11 Level 2 . | . . . . Level 3 . | . . . . Level 4 . | . . . . Level 5 . | . . . . High Security . | . . . . Max Security . | . . . . Squads Dispatched 1 | . . . 1 Investigation . | . . . . Extermination . | . . . . Reinforcement 1 | . . . 1 Assault . | . . . . Garrison . | . . . . Intercept . | . . . . Searches Triggered . | . . . . Construction Impeded . | . . . . Haulers Reinforced . | . . . . Active Scanning Responses . | . . . . Cargo Convoy Interrupts . | . . . . Stealth | -11 -10 -10 -9 --------- Run | Yrd Mat Min Mat Distress Signals 3 | . 1 . 2 Communications Jammed . | . . . . Distress Signals . | . . . . Times Spotted 31 | . 12 7 12 Peak Tracking Total 4 | . 4 2 3 Tactical Retreats . | . . . . Traps | -11 -10 -10 -9 ------- Run | Yrd Mat Min Mat Traps Triggered 1 | . 1 . . Indirectly . | . . . . Trap Hack Attempts . | . . . . Triggered . | . . . . Disarmed . | . . . . Reprogrammed . | . . . . Reused . | . . . . Traps Extracted . | . . . . Installed 1 | . . 1 . Triggered . | . . . . Machines | -11 -10 -10 -9 ---------- Run | Yrd Mat Min Mat Machines Disabled . | . . . . Max in Single Turn . | . . . . Machines Repaired . | . . . . Machines Dismantled . | . . . . Machines Sabotaged . | . . . . Overloaded Fab Kills . | . . . . Hacking | -11 -10 -10 -9 --------- Run | Yrd Mat Min Mat Machines Accessed 5 | . 4 . 1 Terminals 4 | . 3 . 1 Fabricators . | . . . . Repair Stations . | . . . . Recycling Units 1 | . 1 . . Scanalyzers . | . . . . Garrison Access . | . . . . Total Hacks 18 | . 17 . 1 Successful 9 | . 8 . 1 Failed 9 | . 9 . . Catastrophic 1 | . 1 . . Database Lockouts . | . . . . Manual 9 | . 7 . 2 Terminals 15 | . 14 . 1 Fabricators . | . . . . Repair Stations . | . . . . Recycling Units 3 | . 3 . . Scanalyzers . | . . . . Garrison Access . | . . . . Terminal Hacks 6 | . 5 . 1 Emergency Access Points 1 | . 1 . . Alert Level 2 | . 2 . . Locate Traps 1 | . 1 . . Dispatch Records 1 | . . . 1 Zone Layout 1 | . 1 . . Fabricator Hacks . | . . . . Repair Station Hacks . | . . . . Recycling Unit Hacks . | . . . . Scanalyzer . | . . . . Garrison Access Hacks . | . . . . Unauthorized Hacks 3 | . 3 . . Terminals 1 | . 1 . . Track 1 | . 1 . . Fabricators . | . . . . Repair Stations . | . . . . Recycling Units 2 | . 2 . . Reject 1 | . 1 . . Mask 1 | . 1 . . Scanalyzers . | . . . . Garrison Access . | . . . . Data Cores Recovered . | . . . . Used . | . . . . Hacking Detections 4 | . 3 . 1 Full Trace Events . | . . . . Feedback Events . | . . . . Feedback Blocked . | . . . . Robot Schematics Acquired . | . . . . Robots Built . | . . . . Authchips . | . . . . Time . | . . . . Total Robot Build Rating . | . . . . Part Schematics Acquired . | . . . . Parts Built . | . . . . Authchips . | . . . . Time . | . . . . Total Part Build Rating . | . . . . Parts Repaired . | . . . . Time . | . . . . Parts Recycled . | . . . . Recycled Matter . | . . . . Retrieved Matter . | . . . . Retrieved Components . | . . . . Parts Scanalyzed . | . . . . Part Schematics Acquired . | . . . . Parts Damaged . | . . . . Bothacking | -11 -10 -10 -9 ------------ Run | Yrd Mat Min Mat Used RIF Installer . | . . . . Robots Hacked . | . . . . Non-combat . | . . . . Combat . | . . . . Robot Hacks Applied . | . . . . Relay Couplers Released . | . . . . Fabnet Peak Effective % . | . . . . Robots Rewired . | . . . . Allies Hacked . | . . . . Hacks Repelled . | . . . . Allies | -11 -10 -10 -9 -------- Run | Yrd Mat Min Mat Total Allies . | . . . . Largest Group . | . . . . Highest-Rated Group . | . . . . Highest-Rated Ally . | . . . . Total Orders . | . . . . Ally Attacks . | . . . . Total Damage . | . . . . Kills . | . . . . Allies Corrupted . | . . . . Allies Melted . | . . . . Intel | -11 -10 -10 -9 ------- Run | Yrd Mat Min Mat Robot Analysis Total . | . . . . Derelict Logs Recovered 2 | . . 2 . Drone Launches . | . . . . Drone Recoveries . | . . . . Exploration | -11 -10 -10 -9 ------------- Run | Yrd Mat Min Mat Turns Passed 1641 | 76 568 553 444 Spaces Moved 1089 | 56 378 364 291 Core 9 | 9 . . . Treads . | . . . . Legs 1080 | 47 378 364 291 Wheels . | . . . . Hover . | . . . . Flight . | . . . . Fastest Speed 50 | 50 120 120 120 Average Speed 119 | 108 120 120 120 Slowest Speed 120 | 120 120 120 120 Overloaded Moves . | . . . . Propulsion Burnouts . | . . . . Robots Hopped . | . . . . Cave-ins Triggered . | . . . . Exploration Rate (%) 44 | 3 65 76 32 Regions Visited 3 Branch Regions 1 Pre-discovered Areas 1 | . . 1 . Known Exits Taken 2 | . 1 1 . Unknown Exits Taken 1 | 1 . . . Scrap Searched 1 | . . 1 . Spaces Dug . | . . . . Terrain Destroyed . | . . . . Melee . | . . . . Projectile . | . . . . AOE . | . . . . Terrain Rammed . | . . . . Walls Destroyed . | . . . . Machines Disabled . | . . . . Actions | -11 -10 -10 -9 --------- Run | Yrd Mat Min Mat Total 1281 | 64 438 435 344 Wait 30 | . . 23 7 Move 1086 | 55 377 363 291 Hop . | . . . . Pick Up 4 | . . 2 2 Fast Attach 12 | 4 3 2 3 Attach 3 | . . . 3 Detach . | . . . . Swap . | . . . . Drop 7 | . 1 1 5 Fire 118 | 5 53 38 22 Melee . | . . . . Ram . | . . . . Kick 1 | . . . 1 Crush . | . . . . Escape Stasis . | . . . . Rewire . | . . . . Trap 1 | . . 1 . Miscellaneous 19 | . 4 5 10 Route ------- -11/Scrapyard -10/Materials (discovered 3 exits: *Mat x2 / *Min) -10/Mines (discovered 2 exits: *Mat x2) -9/Materials History --------- Turn | Location | Event 7 | -11/Scrapyard | Discovered new exit (range 16) 24 | -11/Scrapyard | Upgraded with Power slot (x1) 24 | -11/Scrapyard | Upgraded with Propulsion slot (x1) 24 | -11/Scrapyard | Upgraded with Utility slot (x1) 24 | -11/Scrapyard | Upgraded with Weapon slot (x1) 77 | -11/Scrapyard | Entered Materials 220 | -10/Materials | Discovered new exit (range 8) 262 | -10/Materials | Identified exit to Mines 314 | -10/Materials | Build established: Mutant 327 | -10/Materials | Core integrity fell below 50% 473 | -10/Materials | Discovered new exit (range 7) 558 | -10/Materials | Discovered new exit (range 5) 565 | -10/Materials | Identified exit to Materials 645 | -10/Materials | Entered Mines 647 | -10/Mines | Reached level 2 773 | -10/Mines | Core integrity fell below 20% 842 | -10/Mines | Learned Materials terminal intel 857 | -10/Mines | Found a hidden stash of uninstalled traps 869 | -10/Mines | Learned location of Recycling (-8) 933 | -10/Mines | Discovered exit to Materials (range 5) 1097 | -10/Mines | Discovered exit to Materials (range 8) 1198 | -10/Mines | Entered Materials 1199 | -9/Materials | Loaded intel: 12 terminal locations 1199 | -9/Materials | Core integrity fell below 50% 1199 | -9/Materials | Core integrity fell below 20% 1200 | -9/Materials | Reached level 3 1200 | -9/Materials | Reached level 4 1200 | -9/Materials | Upgraded with Utility slot (x1) 1642 | -9/Materials | Self-destructed Last Messages --------------- 01503_ K-01 Serf collects debris. 01546_ S-10 Pest destroyed. 01551_ Switching to secondary target: S-10 Pest. 01551_ S-10 Pest destroyed. 01567_ K-01 Serf collects debris. 01567_ Connecting with Terminal... >>Enumerate(Squads) Retrieving dispatch records... Found 21 active squads: 9x Security 2x Surveillance 4x Patrol 6x Transport 01571_ K-01 Serf collects debris. 01572_ R-06 Scavenger collects Lgt. Assault Rifle. 01576_ Y-45 Defender destroyed. 01592_ Used Protomatter to restore core integrity (+165, depleted) 01602_ Connecting with Terminal... Map ----- +----------------------------------------------------+ | #### + #???????????????????????????????? | | + = ! # ############????????????????????? | | ### # ## #????????????????????? | | ############# ## """ """ #????????????????????? | | ## # # """ """ #????????????????????? | | ## # # """ """ #????????????????????? | | ## / T + """ """ #????????????????????? | | ## ![ [=% # # """ """ #????????????????????? | | ## ![ % # # *##???????????????????? | | ## ! * ####### =! !#???????????????????? | | ## *%= #????####+########???????????????????? | | ## #????# #???????????????????????? | | ###+########????# #???????????????????????? | | #?# #???????????# ""T"" #???????????????????????? | | #?# #???????????# """"" #???????????????????????? | | #?# #???????????# #???????????????????????? | | #?# #???????????####+####???????????????????????? | | #?# #??????????????# #??????????????????????????? | | #?# #??????????????# #??????????????????????????? | | ### ##?????????????# #??????????????????""??????? | | #?????????????# #??????????????????"T??????? | | #?????????????# #??????????????????""??????? | | #?????????????# #####?????????X????????????? | | ## #?????????????# !!#??????????????????????? | | ?# #?????????????# !!#????????????""????????? | | ?# #????????+##### !@#????????????T"????????? | | ?# #??# !!#????????????""????????? | | ?# ?? ########## !!#??????????????????????? | | ?# ??????????????# !!#??????????????????????? | | ?# ?????????????#####??????????????????????? | | ?# ???????????????????????????????????????? | | ?# ??????????????????????????????????????? | | ?# ??????????????????????????????????????? | | ?# ?????????????????????????????????????? | | ?# ????????????????????????????????????? | | ?###+##### #???????????????????????????????????? | | ???? ???? ???????????????????????????????????? | | ???? ?????? ???????????????????????????????????? | | ???? ????????????????????????????????????????????? | | ???"T"???????????????????????????????????????????? | | ???"""???????????????????????????????????????????? | | ?????????????????????????????????????????????????? | | ?????????????????????????????????????????????????? | | ?????????????????????????????????????????????????? | | ?????????????????????????????????????????????????? | | ?????????????????????????????????????????????????? | | ?????????????????????????????????????????????????? | | ?????????????????????????????????????????????????? | | ?????????????????????????????????????????????????? | | ?????????????????????????????????????????????????? | +----------------------------------------------------+ Best States ------------- Heat Dissipation 105 Energy Generation 25 Energy Capacity 275 Matter Stores 300 Matter Capacity 300 Sight Range 17 Robot Scan Range 14 Terrain Scan Density 10 Resistance: KI 20 Resistance: TH 20 Resistance: EX 20 Resistance: EM 20 Resistance: I 20 Resistance: S 20 Resistance: P 20 Evasion (%) 55 Offensive Hacking 15 Item Schematics ----------------- None Robot Schematics ------------------ None Fabricated ------------ Nothing Alien Tech Used ----------------- None Achievements -------------- None Challenges ------------ None RPGLIKE | -11 -10 -10 -9 --------- Run | Yrd Mat Min Mat Levels Raised 3 | . . 1 2 XP Earned 9908 | 4000 1020 1350 3538 XP Spent 7910 | 3950 . 1510 2450 Upgrades 27 | 9 . 6 12 Power Slot 1 | 1 . . . Propulsion Slot 1 | 1 . . . Utility Slot 2 | 1 . . 1 Weapon Slot 1 | 1 . . . Core Integrity 2 | . . 2 . Heat Dissipation 11 | . . . 11 Energy Generation 2 | 2 . . . Inventory Capacity 2 | . . 2 . Sight Range 1 | . . 1 . Ranged Accuracy 3 | 2 . 1 . Hack Attack % 1 | 1 . . . Protomatter Created 153 | . 39 39 75 Integrity Restored 381 | . 39 117 225 Core 379 | . 37 117 225 Parts 2 | . 2 . . Protomatter Decayed 25 | . 25 . . Game ------ Seed NullParticleMeganuke Manual? 0 Play Time 00:29:47 Cumulative 70.0 hours Start 2024.05.15 @ 17:19:07 End 2024.05.17 @ 07:29:34 Sessions 3 Manual Loads 0 Difficulty Adventurer Special Mode Winter2019/RPGLIKE Game No. 46 Rogue 0 Adventurer 46 Explorer 0 Win Type - Total 3 Types 2/0/0/1/0/0/0/0/0 Lore% 44 Gallery% 48 Achievement% 59 Wizard Run 0 Options --------- Layout 2 ASCII 0 Keyboard 0 Movement Mouse Keybinds 0 Fullscreen 2 Font 24/Smallcaps Map View 50x44 Zoom Use 0% Tactical HUD 1 Map Filters NONE Filters NONE Steam 1 RUN: 599a409d-7412-4961-af92-a1c4d13910a3